bitfinex-derivatives/quotes_SOLF0:USTF0_20250829
["timestamp","ask_amount","ask_price","bid_price","bid_amount"]
[1756464643906,0.06,207.34,207.18,7.61]
[1756464649512,0.06,207.33,207.18,7.61]
[1756464649713,0.06,207.29,207.18,7.61]
[1756464653922,21.14,207.31,207.18,7.61]
[1756464654312,0.83983927,207.29,207.18,7.61]
[1756464660427,0.06,207.34,207.21,7.61]
[1756464660729,0.06,207.38,207.21,7.61]
[1756464661026,0.89968729,207.35,207.21,7.61]
[1756464663430,0.83968729,207.35,207.25,7.61]
[1756464663634,0.06,207.39,207.25,7.61]
[1756464664033,0.89944423,207.39,207.25,7.61]
[1756464664532,0.06,207.38,207.25,7.61]
[1756464665134,0.06,207.36,207.25,7.61]
[1756464665333,3.29653162,207.35,207.25,7.61]
[1756464665731,0.06,207.36,207.25,7.61]
[1756464665927,0.06,207.34,207.25,7.61]
[1756464668332,0.09,207.38,207.25,7.61]
[1756464669035,0.09,207.35,207.25,7.61]
[1756464669234,3.30302284,207.34,207.25,7.61]
[1756464669435,0.09,207.35,207.25,7.61]
[1756464669637,3.30449748,207.34,207.25,7.61]
[1756464669935,3.30437669,207.33,207.25,7.61]
[1756464670239,3.39437669,207.32,207.25,7.61]
[1756464670438,3.30437669,207.31,207.25,7.61]
[1756464671138,63.02,207.33,207.25,7.61]
[1756464671335,3.30547477,207.32,207.25,7.61]
[1756464671534,3.30547477,207.31,207.25,7.61]
[1756464671734,63.02,207.33,207.25,7.61]
[1756464671937,3.30743057,207.32,207.25,7.61]
[1756464672137,3.30743057,207.31,207.25,7.61]
[1756464672338,3.30743057,207.3,207.16,7.71]
[1756464672539,63.02,207.33,207.16,7.71]
[1756464672738,3.31046801,207.32,207.16,7.71]
[1756464672935,3.31046801,207.31,207.16,7.71]
[1756464673137,3.31046801,207.3,207.16,7.71]
[1756464673336,63.02,207.33,207.16,7.71]
[1756464673536,3.31126305,207.32,207.16,7.71]
[1756464673734,0.09,207.35,207.18,7.71]
[1756464673935,0.92944423,207.39,207.22,7.71]
[1756464674132,3.31226993,207.38,207.22,7.71]
[1756464674339,3.31226993,207.37,207.23,7.71]
[1756464674534,0.92944423,207.39,207.23,7.71]
[1756464674738,3.31397609,207.38,207.23,7.71]
[1756464674939,3.31397609,207.37,207.23,7.71]
[1756464675143,0.92944423,207.39,207.23,7.71]
[1756464675343,3.31520729,207.38,207.23,7.71]
[1756464675639,323.96,207.42,207.27,7.71]
[1756464675944,3.31566834,207.41,207.27,7.71]
[1756464676244,0.08,207.47,207.31,7.71]
[1756464676448,3.3162664,207.46,207.31,7.71]
[1756464676646,0.83921143,207.44,207.31,7.71]
[1756464679242,0.91921143,207.44,207.31,7.71]
[1756464679434,0.08,207.43,207.31,7.71]
[1756464679634,3.31004259,207.42,207.31,7.71]
[1756464679942,3.38938963,207.41,207.31,7.71]
[1756464680142,3.30938963,207.4,207.31,7.71]
[1756464680345,0.08,207.41,207.31,7.71]
[1756464680742,71.15921143,207.44,207.31,7.71]
[1756464680943,0.83921143,207.44,207.31,7.71]
[1756464682642,0.83921143,207.44,207.36,11.92824129]
[1756464682938,184.39704308,207.51,207.37,7.71]
[1756464683143,0.08,207.47,207.37,7.71]
[1756464686539,0.83905967,207.48,207.37,7.71]
[1756464691448,184.39704308,207.51,207.37,7.71]
[1756464691644,0.83898887,207.51,207.37,7.71]
[1756464692345,0.08,207.48,207.37,7.71]
[1756464695349,0.03047374,207.45,207.37,7.71]
[1756464712769,0.83898887,207.51,207.41,7.77]
[1756464712968,0.07,207.55,207.41,7.77]
[1756464713166,0.83889786,207.54,207.41,7.77]
[1756464714070,0.83889786,207.54,207.45,0.0304007]
[1756464714266,0.83889786,207.54,207.45,7.8004007]
[1756464714571,0.1,207.53,207.45,0.0304007]
[1756464716374,0.1,207.53,207.24,66.824]
[1756464716375,0.1,207.45,207.26,7.77]
[1756464716965,11.92824129,207.42,207.26,7.77]
[1756464717165,0.1,207.41,207.26,7.77]
[1756464717470,0.1,207.4,207.26,7.77]
[1756464717675,0.03035108,207.36,207.26,7.77]
[1756464720576,0.1,207.35,207.26,7.77]
[1756464723873,0.03035108,207.36,207.26,7.77]
[1756464725473,0.1,207.35,207.26,7.77]
[1756464725878,0.03035108,207.36,207.26,7.77]
[1756464729181,0.1,207.35,207.26,7.77]
[1756464731180,11.92824129,207.35,207.19,323.92]
[1756464731386,11.92824129,207.35,207.2,7.86]
[1756464731584,0.1,207.34,207.2,7.86]
[1756464731879,11.92824129,207.31,207.2,7.86]
[1756464732079,0.1,207.3,207.2,7.86]
[1756464734589,0.11,207.28,207.13,7.86]
[1756464735989,0.11,207.32,207.13,7.86]
[1756464736187,0.11,207.32,207.17,7.86]
[1756464739591,11.92824129,207.33,207.17,7.86]
[1756464739790,0.11,207.32,207.17,7.86]
[1756464739987,11.92824129,207.33,207.17,7.86]
[1756464740392,0.11,207.32,207.17,7.86]
[1756464740793,56.99,207.32,207.17,7.86]
[1756464741488,0.11,207.32,207.17,7.86]
[1756464742195,0.11,207.32,207.17,12.204]
[1756464742395,0.11,207.32,207.17,7.86]
[1756464745593,11.92824129,207.33,207.17,7.86]
[1756464745797,0.11,207.32,207.17,7.86]
[1756464745990,11.92824129,207.33,207.17,7.86]
[1756464746399,0.11,207.32,207.17,7.86]
[1756464748793,11.92824129,207.33,207.17,7.86]
[1756464748996,3.27073102,207.32,207.17,7.86]
[1756464749199,0.11,207.31,207.17,7.86]
[1756464749499,11.92824129,207.33,207.17,7.86]
[1756464749699,0.11,207.31,207.17,7.86]
[1756464750201,52.12,207.3,207.17,7.86]
[1756464750701,89.88,207.3,207.17,7.86]
[1756464751103,0.11,207.29,207.17,7.86]
[1756464751396,0.11,207.28,207.17,7.86]
[1756464754400,11.92824129,207.29,207.17,7.86]
[1756464754606,0.11,207.28,207.17,7.86]
[1756464755408,7.17504104,207.26,207.17,7.86]
[1756464757309,0.13,207.25,207.17,7.86]
[1756464757510,7.17504104,207.23,207.17,7.86]
[1756464757702,7.17504104,207.23,207.1,7.17504104]
[1756464757703,7.17504104,207.23,207.06,324.08]
[1756464757910,7.17504104,207.17,207.11,7.2]
[1756464758208,0.13,207.18,207.11,7.2]
[1756464760307,0.13,207.16,206.99,7.2]
[1756464760513,3.27823721,207.15,206.99,7.2]
[1756464760719,81.22,207.15,206.99,7.2]
[1756464762121,3.27977547,207.14,206.99,7.2]
[1756464762311,123.34,207.15,206.99,7.2]
[1756464762515,123.24,207.19,207.04,7.2]
[1756464762717,0.13,207.2,207.04,7.2]
[1756464762917,126.57765781,207.19,207.04,7.2]
[1756464763220,123.3,207.19,207.04,7.2]
[1756464763717,123.43,207.2,207.04,7.2]
[1756464763921,123.39,207.2,207.04,7.2]
[1756464764122,3.27843167,207.19,207.04,7.2]
[1756464764323,123.39,207.2,207.04,7.2]
[1756464764518,0.13,207.15,207.04,7.2]
[1756464764718,3.27696825,207.14,207.04,7.2]
[1756464765020,0.13,207.15,207.04,7.2]
[1756464765217,0.13,207.11,206.93,7.2]
[1756464765422,92.84,207.1,206.93,7.2]
[1756464766122,0.13,207.11,206.93,7.2]
[1756464766516,1.58,207.1,206.93,7.2]
[1756464766713,11.96761214,207.08,206.93,7.2]
[1756464767019,0.13,207.06,206.93,7.2]
[1756464767218,11.96761214,207.06,206.93,7.2]
[1756464767420,0.13,207.05,206.93,7.2]
[1756464769226,11.96761214,207.07,206.81,0.84083359]
[1756464769227,0.13,207.02,206.85,7.2]
[1756464769429,1.62,207.01,206.85,7.2]
[1756464769822,0.13,207.0,206.85,7.2]
[1756464770518,0.13,206.98,206.85,7.2]
[1756464770723,0.13,206.96,206.85,7.2]
[1756464770926,11.96761214,206.99,206.85,7.2]
[1756464771129,324.44,207.07,206.85,7.2]
[1756464771130,53.23,207.0,206.85,7.2]
[1756464771630,0.13,207.0,206.85,7.2]
[1756464772927,115.7,206.99,206.85,7.2]
[1756464773119,127.66761214,206.99,206.85,7.2]
[1756464773321,0.13,206.98,206.85,7.2]
[1756464773519,123.87,206.98,206.85,7.2]
[1756464773828,123.74,206.97,206.85,7.2]
[1756464774623,0.13,206.98,206.85,7.2]
[1756464774824,50.76,206.97,206.85,7.2]
[1756464775231,0.13,206.98,206.85,7.2]
[1756464775624,50.6,206.97,206.85,7.2]
[1756464776225,0.13,206.96,206.85,7.2]
[1756464777530,12.09761214,207.0,206.85,7.2]
[1756464777729,42.4,206.99,206.85,7.2]
[1756464777931,92.54,206.99,206.85,7.2]
[1756464778232,0.13,207.0,206.85,7.2]
[1756464778432,123.75,207.0,206.85,7.2]
[1756464778832,123.71,207.0,206.85,7.2]
[1756464780135,123.63,207.0,206.85,7.2]
[1756464780431,0.13,207.05,206.86,11.96761214]
[1756464780636,0.13,207.05,206.92,7.2]
[1756464784329,324.52,207.06,206.94,7.2]
[1756464784531,123.44,207.09,206.94,7.2]
[1756464784732,0.13,207.15,206.98,7.2]
[1756464784932,123.48,207.14,206.98,7.2]
[1756464785528,123.48,207.14,207.01,11.96761214]
[1756464785737,123.48,207.14,207.02,7.2]
[1756464786038,123.61,207.15,207.02,7.2]
[1756464786441,0.13,207.15,207.02,7.2]
[1756464786639,62.68,207.17,207.02,7.2]
[1756464787335,324.64,207.18,207.02,7.2]
[1756464787541,123.48,207.17,207.02,7.2]
[1756464788040,123.48,207.17,207.0,16.08]
[1756464788041,324.64,207.18,207.05,11.96761214]
[1756464788238,324.64,207.18,207.06,7.35]
[1756464791643,0.11,207.17,207.0,7.35]
[1756464792143,76.9,207.16,207.01,7.35]
[1756464792334,0.11,207.15,207.01,7.35]
[1756464794338,0.11,207.15,207.03,11.96761214]
[1756464794647,324.64,207.18,207.08,7.35]
[1756464794849,0.11,207.19,207.08,7.35]
[1756464796443,11.96761214,207.19,206.99,11.96761214]
[1756464796644,11.96761214,207.19,207.0,7.35]
[1756464796846,0.11,207.18,207.0,7.35]
[1756464797148,11.96761214,207.19,207.0,7.35]
[1756464797344,0.11,207.18,207.0,7.35]
[1756464798244,11.96761214,207.19,207.0,7.35]
[1756464798750,0.11,207.18,207.0,7.35]
[1756464798937,11.96761214,207.19,207.0,7.35]
[1756464799142,0.11,207.18,207.0,7.35]
[1756464799740,0.11,207.18,207.0,11.6975]
[1756464799945,0.11,207.18,207.03,7.35]
[1756464804350,56.04761214,207.2,207.03,7.35]
[1756464804852,0.11,207.19,207.03,7.35]
[1756464805047,0.11,207.22,207.09,7.35]
[1756464805252,0.11,207.23,207.09,7.35]
[1756464805749,11.96761214,207.24,207.09,7.35]
[1756464806054,0.11,207.19,207.09,7.35]
[1756464813061,0.11,207.23,207.09,7.35]
[1756464813253,2.42,207.27,207.11,7.35]
[1756464813456,2.53,207.27,207.11,7.35]
[1756464814159,0.11,207.27,207.11,11.6952]
[1756464814357,0.11,207.27,207.15,7.35]
[1756464814749,0.11,207.34,207.18,11.96761214]
[1756464814954,3.29332519,207.33,207.19,7.35]
[1756464815155,169.2877598,207.35,207.23,7.35]
[1756464815359,0.11,207.34,207.23,7.35]
[1756464817458,124.21,207.34,207.23,7.35]
[1756464817651,0.11,207.34,207.23,7.35]
[1756464819963,11.96761214,207.33,207.17,7.36]
[1756464820158,3.29289081,207.32,207.17,7.36]
[1756464820361,0.09,207.32,207.17,7.36]
[1756464820662,0.09,207.3,207.17,7.36]
[1756464820959,93.0,207.29,207.17,7.36]
[1756464821158,93.0,207.29,207.11,7.36]
[1756464821159,0.09,207.28,207.11,7.36]
[1756464821360,3.29393529,207.27,207.11,7.36]
[1756464821560,3.29383147,207.26,207.11,7.36]
[1756464821863,0.09,207.25,207.11,7.36]
[1756464822468,12.05761214,207.25,207.11,7.36]
[1756464823168,3.29874224,207.24,207.11,7.36]
[1756464823463,12.05761214,207.25,207.11,7.36]
[1756464823665,3.29908397,207.24,207.11,7.36]
[1756464823863,12.05761214,207.25,207.11,7.36]
[1756464824065,3.29958646,207.24,207.11,7.36]
[1756464824255,3.3026907,207.23,207.11,7.36]
[1756464824460,0.09,207.25,207.11,7.36]
[1756464824763,26.27,207.29,207.11,7.36]
[1756464824962,0.09,207.27,207.11,7.36]
[1756464825159,3.30332638,207.26,207.11,7.36]
[1756464825361,3.30332638,207.25,207.11,7.36]
[1756464825559,0.09,207.27,207.11,7.36]
[1756464825767,26.18,207.29,207.11,7.36]
[1756464825768,0.09,207.25,207.11,7.36]
[1756464825961,0.09,207.23,207.11,7.36]
[1756464826161,36.1629439,207.22,207.11,7.36]
[1756464826368,32.86,207.22,207.11,7.36]
[1756464827465,3.30632501,207.21,207.11,7.36]
[1756464827660,32.86,207.22,207.11,7.36]
[1756464827868,3.30634328,207.21,207.11,7.36]
[1756464828068,32.86,207.22,207.11,7.36]
[1756464828269,0.09,207.2,207.11,7.36]
[1756464828465,3.30632607,207.19,207.11,7.36]
[1756464829467,5.47482447,207.28,207.11,7.36]
[1756464829672,3.31026616,207.27,207.14,7.36]
[1756464829871,3.31026616,207.26,207.14,7.36]
[1756464830072,3.31026616,207.25,207.14,7.36]
[1756464830270,3.31026616,207.24,207.14,7.36]
[1756464830473,0.09,207.28,207.14,7.36]
[1756464830676,3.31077085,207.27,207.14,7.36]
[1756464830972,3.31077085,207.26,207.14,7.36]
[1756464831173,3.31077085,207.25,207.14,7.36]
[1756464831375,3.31077085,207.24,207.14,7.36]
[1756464831571,54.81,207.28,207.14,7.36]
[1756464831771,3.31450326,207.27,207.14,7.36]
[1756464831972,3.31450326,207.26,207.14,7.36]
[1756464832166,3.31450326,207.25,207.14,7.36]
[1756464832374,124.13,207.28,207.14,7.36]
[1756464832573,3.31546039,207.27,207.14,7.36]
[1756464832780,3.31546039,207.26,207.14,7.36]
[1756464833074,0.09,207.28,207.14,7.36]
[1756464833279,3.31561604,207.27,207.14,7.36]
[1756464833475,0.09,207.28,207.14,7.36]
[1756464833674,174.67258427,207.35,207.18,7.36]
[1756464833675,67.1,207.33,207.18,7.36]
[1756464833870,0.09,207.31,207.18,7.36]
[1756464834076,0.09,207.29,207.18,7.36]
[1756464834276,3.31548104,207.28,207.18,7.36]
[1756464834479,0.09,207.29,207.18,7.36]
[1756464834679,3.31319166,207.28,207.18,7.36]
[1756464834880,0.09,207.29,207.18,7.36]
[1756464835078,3.31262323,207.28,207.18,7.36]
[1756464835279,0.09,207.29,207.18,7.36]
[1756464836077,3.31230361,207.28,207.18,7.36]
[1756464836277,0.09,207.29,207.18,7.36]
[1756464837079,181.25537194,207.35,207.18,7.36]
[1756464837080,0.09,207.34,207.18,7.36]
[1756464837378,3.31226626,207.33,207.18,7.36]
[1756464837681,3.31226626,207.32,207.18,7.36]
[1756464837881,109.53,207.34,207.18,7.36]
[1756464838082,3.30835785,207.33,207.18,7.36]
[1756464838281,3.30835785,207.32,207.18,7.36]
[1756464838481,109.53,207.34,207.18,7.36]
[1756464838681,3.30820015,207.33,207.18,7.36]
[1756464838878,3.30820015,207.32,207.18,7.36]
[1756464839085,109.53,207.34,207.18,7.36]
[1756464839279,3.30953512,207.33,207.18,7.36]
[1756464839481,0.09,207.31,207.18,7.36]
[1756464839785,3.30953512,207.3,207.18,7.36]
[1756464839988,0.09,207.31,207.18,7.36]
[1756464840188,3.30930575,207.3,207.18,7.36]
[1756464840383,0.09,207.31,207.18,7.36]
[1756464840780,169.2877598,207.35,207.21,7.36]
[1756464841080,3.30961801,207.34,207.21,7.36]
[1756464841283,169.2877598,207.35,207.21,7.36]
[1756464842588,169.2877598,207.35,207.25,7.36]
[1756464843884,0.09,207.41,207.25,7.36]
[1756464844085,45.59,207.41,207.25,7.36]
[1756464846391,0.09,207.41,207.28,11.96761214]
[1756464846597,0.09,207.41,207.29,7.41]
[1756464847697,447.84,207.48,207.29,7.41]
[1756464847997,3.40606938,207.47,207.29,7.41]
[1756464848198,3.30606938,207.46,207.29,7.41]
[1756464848394,0.1,207.47,207.33,7.41]
[1756464849898,3.30322368,207.46,207.33,7.41]
[1756464850193,0.1,207.47,207.33,7.41]
[1756464851900,324.26,207.48,207.33,7.41]
[1756464852100,3.30205848,207.47,207.33,7.41]
[1756464852401,0.1,207.45,207.33,7.41]
[1756464852601,0.1,207.43,207.26,7.41]
[1756464852905,0.1,207.41,207.26,7.41]
[1756464854799,0.1,207.37,207.26,7.41]
[1756464854994,3.30209289,207.36,207.17,7.41]
[1756464855201,0.1,207.34,207.17,7.41]
[1756464858107,11.96761214,207.34,207.17,7.41]
[1756464858405,0.1,207.33,207.17,7.41]
[1756464859104,11.96761214,207.34,207.17,7.41]
[1756464859105,3.30745179,207.32,207.17,7.41]
[1756464859308,3.40745179,207.31,207.17,7.41]
[1756464859503,3.40593485,207.3,207.17,7.41]
[1756464859703,0.1,207.3,207.17,7.41]
[1756464860110,11.96761214,207.34,207.17,7.41]
[1756464860409,3.30562702,207.33,207.17,7.41]
[1756464860605,0.1,207.31,207.17,7.41]
[1756464860802,3.30562702,207.3,207.17,7.41]
[1756464861002,0.1,207.31,207.17,7.41]
[1756464861201,3.30508812,207.3,207.17,7.41]
[1756464861407,0.1,207.29,207.17,7.41]
[1756464863907,10.76964894,207.46,207.17,7.41]
[1756464863908,23.28,207.32,207.17,7.41]
[1756464866407,0.1,207.33,207.17,7.41]
[1756464866608,47.42,207.33,207.17,7.41]
[1756464866805,0.83975821,207.31,207.17,7.41]
[1756464869005,0.1,207.3,207.17,7.41]
[1756464869609,0.83975821,207.31,207.17,7.41]
[1756464869811,0.1,207.3,207.17,7.41]
[1756464875812,48.73975821,207.31,207.17,7.41]
[1756464876012,0.1,207.28,207.17,7.41]
[1756464876412,0.1,207.24,207.12,7.41]
[1756464877314,7.1775735,207.22,207.12,7.41]
[1756464877813,0.11,207.21,207.12,7.41]
[1756464878412,0.83975821,207.31,207.12,7.41]
[1756464878611,7.1775735,207.26,207.14,7.35]
[1756464878812,7.1775735,207.23,207.14,7.35]
[1756464879414,0.11,207.25,207.14,7.35]
[1756464880815,68.84,207.27,207.14,7.35]
[1756464881708,111.8319925,207.29,207.14,7.35]
[1756464881905,3.31038971,207.28,207.14,7.35]
[1756464882110,111.8319925,207.29,207.14,7.35]
[1756464882308,3.31031811,207.28,207.14,7.35]
[1756464882514,12.0719925,207.29,207.14,7.35]
[1756464882711,3.31014629,207.28,207.14,7.35]
[1756464882912,0.11,207.29,207.14,19.3119925]
[1756464883109,0.11,207.29,207.15,7.35]
[1756464885120,0.83975821,207.31,207.15,7.35]
[1756464885318,0.83975821,207.31,207.19,7.35]
[1756464887020,174.00396444,207.35,207.19,7.35]
[1756464887423,0.83973794,207.32,207.19,7.35]
[1756464887624,0.11,207.31,207.19,7.35]
[1756464888718,0.83973794,207.32,207.19,7.35]
[1756464888920,61.64,207.4,207.23,7.35]
[1756464889222,0.8396569,207.35,207.23,7.35]
[1756464890518,0.11,207.37,207.23,7.35]
[1756464890720,0.11,207.41,207.27,7.35]
[1756464891021,123.04,207.43,207.31,7.35]
[1756464891213,4.15381215,207.42,207.31,7.35]
[1756464891413,0.83930251,207.42,207.31,7.35]
[1756464896424,0.94930251,207.42,207.31,7.35]
[1756464899232,0.83930251,207.42,207.31,7.35]
[1756464900330,0.11,207.51,207.38,7.35]
[1756464901430,0.11,207.51,207.38,19.3119925]
[1756464901626,0.11,207.51,207.39,7.35]
[1756464903635,0.95,207.52,207.39,7.35]
[1756464903839,0.95,207.48,207.32,7.35]
[1756464904139,6.64,207.47,207.32,7.35]
[1756464904336,0.95,207.44,207.32,7.35]
[1756464905737,0.11073797,207.44,207.32,7.35]
[1756464906440,0.03045,207.4,207.32,7.35]
[1756464917552,0.03045,207.4,207.33,7.37]
[1756464918349,0.08,207.5,207.35,7.37]
[1756464918953,0.08,207.5,207.29,62.0]
[1756464918954,0.83903944,207.52,207.39,7.37]
[1756464919156,0.11,207.55,207.39,7.37]
[1756464919352,0.94887764,207.55,207.39,7.37]
[1756464919556,0.94887764,207.55,207.4,7.37]
[1756464920558,0.94887764,207.55,207.45,0.03063347]
[1756464922357,0.83887764,207.55,207.45,7.40063347]
[1756464922560,0.11,207.59,207.45,7.40063347]
[1756464922862,0.94865526,207.59,207.45,7.40063347]
[1756464923057,0.94865526,207.59,207.45,7.37]
[1756464923660,0.94865526,207.59,207.5,0.03110343]
[1756464923953,324.25,207.64,207.52,7.37]
[1756464924159,0.11,207.64,207.52,7.37]
[1756464924857,0.11,207.69,207.55,11.9619925]
[1756464925060,0.11,207.69,207.56,7.37]
[1756464925257,0.83830172,207.68,207.56,7.37]
[1756464925860,0.83830172,207.68,207.6,0.03102004]
[1756464926362,0.11,207.69,207.6,0.03102004]
[1756464926565,0.83825123,207.68,207.6,0.03102004]
[1756464928661,0.11,207.67,207.6,0.03102004]
[1756464929862,0.11,207.65,207.6,0.03102004]
[1756464930160,0.11,207.67,207.6,0.03102004]
[1756464930358,0.11,207.65,207.6,0.03102004]
[1756464930557,0.11,207.67,207.6,0.03102004]
[1756464930763,0.11,207.65,207.6,0.03102004]
[1756464930954,0.11,207.67,207.6,0.03102004]
[1756464931156,0.11,207.65,207.6,0.03102004]
[1756464931362,0.11,207.67,207.6,0.03102004]
[1756464931667,3.2846303,207.66,207.6,0.03102004]
[1756464931959,3.2846303,207.65,207.6,0.03102004]
[1756464932165,0.11,207.67,207.6,0.03102004]
[1756464932466,3.28475025,207.66,207.6,0.03102004]
[1756464932667,0.11,207.64,207.6,0.03102004]
[1756464932863,0.11,207.67,207.6,0.03102004]
[1756464933065,3.28489122,207.66,207.6,0.03102004]
[1756464933264,3.28578493,207.65,207.6,0.03102004]
[1756464933566,0.11,207.67,207.6,0.03102004]
[1756464933867,3.28582757,207.66,207.6,0.03102004]
[1756464934067,0.11,207.64,207.6,0.03102004]
[1756464934268,0.11,207.67,207.6,0.03102004]
[1756464934469,3.28635155,207.66,207.6,0.03102004]
[1756464934664,0.11,207.64,207.6,0.03102004]
[1756464934966,0.11,207.67,207.6,0.03102004]
[1756464935169,0.11,207.65,207.6,0.03102004]
[1756464935363,0.11,207.63,207.6,0.03102004]
[1756464935558,0.11,207.65,207.6,0.03102004]
[1756464935765,0.11,207.63,207.6,0.03102004]
[1756464935964,11.9619925,207.66,207.6,0.03102004]
[1756464936160,0.11,207.64,207.6,0.03102004]
[1756464936360,0.12,207.62,207.6,0.03102004]
[1756464936564,0.12,207.61,207.6,0.03102004]
[1756464936971,0.6,207.61,207.6,0.03102004]
[1756464941169,0.12,207.61,207.48,7.47]
[1756464941470,15.25106835,207.6,207.48,7.47]
[1756464941670,3.28907585,207.59,207.39,7.47]
[1756464941864,5.38482447,207.64,207.39,7.47]
[1756464941865,11.9619925,207.56,207.39,7.47]
[1756464942070,0.08,207.55,207.39,7.47]
[1756464943774,31.42,207.61,207.42,7.47]
[1756464943970,0.03046698,207.49,207.42,7.47]
[1756464944174,0.08,207.58,207.42,7.47]
[1756464944872,0.03064197,207.52,207.42,7.47]
[1756464950271,0.03064197,207.52,207.45,11.9619925]
[1756464950472,0.08,207.62,207.46,7.47]
[1756464951080,0.12,207.61,207.46,7.47]
[1756464951280,3.29243506,207.6,207.46,7.47]
[1756464951580,0.12,207.59,207.46,7.47]
[1756464952178,0.12,207.59,207.5,0.03048602]
[1756464953782,0.12,207.57,207.5,0.03048602]
[1756464957383,3.29644226,207.56,207.5,0.03048602]
[1756464957582,0.12,207.57,207.5,0.03048602]
[1756464957886,3.29382308,207.56,207.5,0.03048602]
[1756464958086,0.12,207.57,207.5,0.03048602]
[1756464958283,3.29382308,207.56,207.5,30.03048602]
[1756464958483,0.12,207.54,207.5,30.03048602]
[1756464958684,0.12,207.59,207.5,30.03048602]
[1756464958880,0.12,207.57,207.5,30.03048602]
[1756464959083,3.29573296,207.56,207.5,30.03048602]
[1756464960586,15.25772546,207.56,207.5,30.03048602]
[1756464960889,0.12,207.53,207.5,30.03048602]
[1756464961084,0.12,207.51,207.5,30.03048602]
[1756464961286,3.41854522,207.51,207.42,7.47]
[1756464961486,0.12,207.51,207.42,7.47]
[1756464962287,3.30131526,207.5,207.42,7.47]
[1756464962488,0.12,207.51,207.42,7.47]
[1756464963188,3.30154299,207.5,207.42,7.47]
[1756464963389,0.12,207.51,207.42,7.47]
[1756464963687,3.30245585,207.5,207.42,7.47]
[1756464963887,0.12,207.51,207.42,7.47]
[1756464964089,3.30274289,207.5,207.42,7.47]
[1756464964290,0.12,207.51,207.42,7.47]
[1756464964490,3.30113477,207.5,207.42,7.47]
[1756464964690,0.12,207.51,207.42,7.47]
[1756464964890,3.30027912,207.5,207.42,7.47]
[1756464965093,0.12,207.51,207.42,7.47]
[1756464965392,0.12,207.55,207.42,7.47]
[1756464965586,117.34,207.56,207.42,7.47]
[1756464966888,3.41999387,207.55,207.42,7.47]
[1756464967088,3.29999387,207.54,207.42,7.47]
[1756464967291,0.12,207.55,207.42,7.47]
[1756464967592,3.29965295,207.54,207.42,7.47]
[1756464967887,0.03068916,207.51,207.42,7.47]
[1756464970795,0.12,207.49,207.42,7.47]
[1756464970993,12.0819925,207.49,207.34,7.28]
[1756464971794,3.41984625,207.48,207.34,7.28]
[1756464971993,33.85984625,207.47,207.34,7.28]